{"text_format":"3","workbook":"xlsx","n_sheets":3,"sheets":["Cover","SUMMARY","SECURITY SYSTEMS"],"not_rendered":{"images":1,"external_links":21,"defined_names":3951},"read":"whole","date_system":"1900"}

{"sheet":"Cover","index":0,"n_rows":50,"n_cols":6,"rows_kept":50,"merged":[[0,5,6,8],[8,0,8,8],[9,0,9,8],[10,0,10,8],[11,0,11,8],[12,0,12,8]]}
[{"$nulls":5},"BILL OF QUANTITIES "]
{"$rows_empty":8}
["ESKOM REAL ESTATE "]
["SECURITY SYSTEMS"]
[]
[]
[]
[]
[]
["Use this page as a cover page for the Activity schedule:"]
["1. Tenderers must ensure that adequate provision is made in the pricing schedule for the health and safety measures "]
["required by Eskom"]
["2. The original format pricing schedule must be populated by hand in black ink and will be the document used for"]
["evaluation purposes."]
["3. Tenderers are also required to electronically populate the Excel format and add to the required Flash Drive with your"]
["submission. This will be used to support verification of pricing errors."]
["4. The pricing instructions shall be read prior to pricing this document"]
["5. The PDF submission of the Pricing schedule (all pages) shall be signed by the supplier prior to submission of this tender"]
[]
["PRICING INFORMATION"]
[]
[]
["ENQUIRY NUMBER:"]
[]
[]
[]
["TENDERERS NAME:"]
[]
[]
["THE PRICE IN RAND (excluding Vat):"]
[]
[]
[]
[]
["DATE:"]
[]
[]
[]
["SIGNED BY:"]
[]
[]
[]
["DESIGNATION: "]

{"sheet":"SUMMARY","index":1,"n_rows":39,"n_cols":6,"rows_kept":39,"merged":[[0,0,0,5],[1,0,1,5],[2,0,2,5],[3,0,3,5],[38,1,38,4]]}
["ESKOM REAL ESTATE PROJECT DELIVERY"]
["SECURITY SYSTEMS "]
[]
[]
["sum","DESCRIPTION","UNIT","QUANTITY","RATE","AMOUNT"]
[]
[1,{"$f":"'SECURITY SYSTEMS'!B14","v":"Management of Contract"},"sum",1,{"$f":"'SECURITY SYSTEMS'!F18","v":{"v":0,"d":"R0.00"}},{"$f":"D7*E7","v":{"v":0,"d":"R0.00"}}]
[]
[2,{"$f":"'SECURITY SYSTEMS'!B24","v":"MWP Integrated CCTV System "},"sum",1,{"$f":"'SECURITY SYSTEMS'!F78","v":{"v":0,"d":"R0.00"}},{"$f":"D9*E9","v":{"v":0,"d":"R0.00"}}]
[]
[3,{"$f":"'SECURITY SYSTEMS'!B82","v":"Access Control Booms and Turnstiles"},"sum",1,{"$f":"'SECURITY SYSTEMS'!F98","v":{"v":0,"d":"R0.00"}},{"$f":"D11*E11","v":{"v":0,"d":"R0.00"}}]
[]
[4,{"$f":"'SECURITY SYSTEMS'!B102","v":"X-ray Scanners and Metal Detectors "},"sum",1,{"$f":"'SECURITY SYSTEMS'!F110","v":{"v":0,"d":"R0.00"}},{"$f":"D13*E13","v":{"v":0,"d":"R0.00"}}]
[]
[5,{"$f":"'SECURITY SYSTEMS'!B114","v":"EBI Access Control MWP"},"sum",1,{"$f":"'SECURITY SYSTEMS'!F130","v":{"v":0,"d":"R0.00"}},{"$f":"D15*E15","v":{"v":0,"d":"R0.00"}}]
[]
[6,{"$f":"'SECURITY SYSTEMS'!B136","v":"MWP Integrated Bus Management System "},"sum",1,{"$f":"'SECURITY SYSTEMS'!F154","v":{"v":0,"d":"R0.00"}},{"$f":"D17*E17","v":{"v":0,"d":"R0.00"}}]
[]
[7,{"$f":"'SECURITY SYSTEMS'!B158","v":"Eric Building CCTV System "},"sum",1,{"$f":"'SECURITY SYSTEMS'!F184","v":{"v":0,"d":"R0.00"}},{"$f":"D19*E19","v":{"v":0,"d":"R0.00"}}]
[]
[8,{"$f":"'SECURITY SYSTEMS'!B188","v":"Perimeter Electric Fence 2.4 km  "},"sum",1,{"$f":"'SECURITY SYSTEMS'!F210","v":{"v":0,"d":"R0.00"}},{"$f":"D21*E21","v":{"v":0,"d":"R0.00"}}]
[]
[9,{"$f":"'SECURITY SYSTEMS'!B216","v":"EBI Access Control ERIC Building "},"sum",1,{"$f":"'SECURITY SYSTEMS'!F232","v":{"v":0,"d":"R0.00"}},{"$f":"D23*E23","v":{"v":0,"d":"R0.00"}}]
[]
[10,{"$f":"'SECURITY SYSTEMS'!B236","v":"ERIC Building RAC-ClockWatch Access Control "},"sum",1,{"$f":"'SECURITY SYSTEMS'!F262","v":{"v":0,"d":"R0.00"}},{"$f":"D25*E25","v":{"v":0,"d":"R0.00"}}]
[]
[11,{"$f":"'SECURITY SYSTEMS'!B266","v":"EAL CCTV System"},"sum",1,{"$f":"'SECURITY SYSTEMS'!F288","v":{"v":0,"d":"R0.00"}},{"$f":"D27*E27","v":{"v":0,"d":"R0.00"}}]
[]
[12,{"$f":"'SECURITY SYSTEMS'!B294","v":"ERIC Building RAC-ClockWatch Access Control "},"sum",1,{"$f":"'SECURITY SYSTEMS'!F310","v":{"v":0,"d":"R0.00"}},{"$f":"D29*E29","v":{"v":0,"d":"R0.00"}}]
[]
[13,{"$f":"'SECURITY SYSTEMS'!B316","v":"RAC-ClockWatch Meal Management System "},"sum",1,{"$f":"'SECURITY SYSTEMS'!F330","v":{"v":0,"d":"R0.00"}},{"$f":"D31*E31","v":{"v":0,"d":"R0.00"}}]
[]
[14,{"$f":"'SECURITY SYSTEMS'!B333","v":"Employee Starter Kit/Pack: "},"sum",1,{"$f":"'SECURITY SYSTEMS'!F345","v":{"v":0,"d":"R0.00"}},{"$f":"D33*E33","v":{"v":0,"d":"R0.00"}}]
[]
[15,{"$f":"'SECURITY SYSTEMS'!B349","v":"Labour Rates"},"sum",1,{"$f":"'SECURITY SYSTEMS'!F367","v":{"v":0,"d":"R0.00"}},{"$f":"D35*E35","v":{"v":0,"d":"R0.00"}}]
[]
[16,{"$f":"'SECURITY SYSTEMS'!B370","v":"Budgetary Allowance"},"sum",1,{"$f":"'SECURITY SYSTEMS'!F374","v":{"v":0,"d":"R0.00"}},{"$f":"D37*E37","v":{"v":0,"d":"R0.00"}}]
[]
[null,"TOTAL COST OF PROJECT (EXCL. VAT)",{"$nulls":3},{"$f":"SUM(F6:F38)","v":{"v":0,"d":"R0.00"}}]

{"sheet":"SECURITY SYSTEMS","index":2,"n_rows":374,"n_cols":6,"rows_kept":374,"merged":[[0,0,0,5],[1,0,1,5],[2,0,2,5],[3,0,3,5],[17,1,17,4],[77,1,77,4],[97,1,97,4],[109,1,109,4],[129,1,129,4],[153,1,153,4],[183,1,183,4],[209,1,209,4],[231,1,231,4],[261,1,261,4],[287,1,287,4],[309,1,309,4],[329,1,329,4],[344,1,344,4],[366,1,366,4],[373,1,373,4]]}
["ESKOM REAL ESTATE PROJECT DELIVERY"]
["SECURITY SYSTEMS "]
[]
[]
[]
[]
[]
["ITEM","DESCRIPTION","UNIT","QTY","RATE","AMOUNT"]
[]
[null,"The tenderer is advised that the bills of quantities must be read in conjunction with the  NEC Scope of works "]
[]
[null,"BILL NO. 1"]
[]
[1,"Management of Contract"]
[]
[1.1,"Management fee, contract management and Programme for the Works, etc. per month This fee will be based on the resources and responsibilities outlined in the Scope of Work, ensuring that all required personnel, systems, and reporting obligations are adequately provided for throughout the project duration.","Monthly ",36,null,{"$f":"D16*E16","v":0}]
[]
[null,"Sub Total carried to summary (Excl. Vat)",{"$nulls":3},{"$f":"SUM(F12:F17)","v":0}]
[]
[null,"AD HOC request-All rates must include :  material,labour,supply,delivery, installation, connection, test, and commission complete .All installations will form part of the maintenance inventory including all cabling, terminations, interfaces with existing systems, and handover documentation.AD HOC request to be approved by service manager on request"]
[]
[null,"BILL NO. 2"]
[]
[2,"MWP Integrated CCTV System "]
[]
[null,"Supply, install, connect, test, and commission complete CCTV system, including all cabling, terminations, interfaces with existing systems, and handover documentation."]
[]
[2.1,"Pelco Box camera","No",1,null,"Rate only"]
[]
[2.2,"Pelco Dome camera","No",1,null,"Rate only"]
[]
[2.3,"AXIS PTZ camera","No",1,null,"Rate only"]
[]
[2.4,"AXIS camera","No",1,null,"Rate only"]
[]
[2.5,"AXIS PTZ Controller","No",1,null,"Rate only"]
[]
[2.6,"Hikvision PTZ camera","No",1,null,"Rate only"]
[]
[2.7,"TVT PTZ camera","No",1,null,"Rate only"]
[]
[2.8,"TVT camera","No",1,null,"Rate only"]
[]
[2.9,"Hikvision camera","No",1,null,"Rate only"]
[]
[{"v":2.1,"d":"2.10"},"NUUO IP Plus NVR ","No",1,null,"Rate only"]
[]
[2.11,"NUUO 8160 NVR ","No",1,null,"Rate only"]
[]
[2.12,"Switches PoE 24 Port","No",1,null,"Rate only"]
[]
[2.13,"Switches Fibre 24 Port","No",1,null,"Rate only"]
[]
[2.14,"Core Switch 24 Port Fibre","No",1,null,"Rate only"]
[]
[2.15,"48 Port PoE","No",1,null,"Rate only"]
[]
[2.16,"24Port PoE Switch ","No",1,null,"Rate only"]
[]
[2.17,"Computers","No",1,null,"Rate only"]
[]
[2.18,"Fiber Media Converters","No",1,null,"Rate only"]
[]
[2.19,"Wireless Nano Stations","No",1,null,"Rate only"]
[]
[{"v":2.2,"d":"2.20"},"NUUO Mini 2 - NVR ","No",1,null,"Rate only"]
[]
[2.21,"NUUO 8160 NVR ","No",1,null,"Rate only"]
[]
[2.22,"Mass Storage System 2PB","No",1,null,"Rate only"]
[]
[2.23,"4TB Hard drives","No",1,null,"Rate only"]
[]
[2.24,"43-inch Display Screen","No",1,null,"Rate only"]
[]
[2.25,"65-inch Display Screen","No",1,null,"Rate only"]
[]
[null,"Sub Total carried to summary (Excl. Vat)",{"$nulls":3},{"$f":"SUM(F27:F77)","v":0}]
[]
[null,"BILL NO 3"]
[]
[3,"Access Control Booms and Turnstiles"]
[]
[null,"Supply, install, connect, test, and commission complete access control boom gates and turnstiles, including all civil fixings, power and data cabling, control panels, integration with existing access control systems, safety devices, software configuration, testing, commissioning, and handover documentation."]
[]
[3.1,"Booms ","No",1,null,"Rate only"]
[]
[3.2,"Spike barrier","No",1,null,"Rate only"]
[]
[3.3,"Turnstiles Full Height Industrial","No",1,null,"Rate only"]
[]
[3.4,"Waist Height Turnstiles","No",1,null,"Rate only"]
[]
[3.5,"Glass PWD Gates automated","No",1,null,"Rate only"]
[]
[3.6,"Glass Man traps","No",1,null,"Rate only"]
[]
[null,"Sub Total carried to summary (Excl. Vat)",{"$nulls":3},{"$f":"SUM(F80:F97)","v":0}]
[]
[null,"BILL NO. 4"]
[]
[{"v":4,"d":"4 "},"X-ray Scanners and Metal Detectors "]
[]
[null,"Supply, install, connect, test, and commission complete X-ray scanners and metal detectors, including power and data cabling, operator consoles, safety compliance, system calibration, testing, commissioning, and handover documentation."]
[]
[4.1,"X-ray Scanners ","No",1,null,"Rate only"]
[]
[4.2,"Walk through Metal Detectors","No",1,null,"Rate only"]
[]
[null,"Sub Total carried to summary (Excl. Vat)",{"$nulls":3},{"$f":"SUM(F100:F109)","v":0}]
[]
[null,"BILL NO 5"]
[]
[{"v":5,"d":"5 "},"EBI Access Control MWP"]
[]
[null,"Supply, install, connect, test, and commission EBI access control system including controllers, readers, control panels, power supplies, structured cabling, software configuration, integration with existing security systems, testing, commissioning, and handover documentation."]
[]
[5.1,"Tema Power Supply","No",1,null,"Rate only"]
[]
[5.2,"Tema Server","No",1,null,"Rate only"]
[]
[5.3,"A08 Controller ","No",1,null,"Rate only"]
[]
[5.4,"A08 Controller PSU, Battery & Enclosure","No",1,null,"Rate only"]
[]
[5.5,"Fingerprint Readers","No",1,null,"Rate only"]
[]
[5.6,"Card Readers","No",1,null,"Rate only"]
[]
[null,"Sub Total carried to summary (Excl. Vat)",{"$nulls":3},{"$f":"SUM(F112:F129)","v":0}]
[]
[null,"BILL NO 6"]
[]
[null,"Access Control Honeyweel/EBI"]
[]
[{"v":6,"d":"6 "},"MWP Integrated Bus Management System "]
[]
[null,"Supply, install, connect, test, and commission a complete integrated bus management system, including control hardware, displays, communication interfaces, software configuration, data and power cabling, system integration, testing, commissioning, training, and handover documentation."]
[]
[6.1,"RAC-ClockWatch Bus Management Server","No",1,null,"Rate only"]
[]
[6.2,"RAC-ClockWatch Bus Management Workstation","No",1,null,"Rate only"]
[]
[6.3,"Full Height Double Turnstile","No",1,null,"Rate only"]
[]
[6.4,"RAC-ClockWatch Integrated Controller","No",1,null,"Rate only"]
[]
[6.5,"RAC-ClockWatch Integrated Controller PSU, Battery & Enclosure","No",1,null,"Rate only"]
[]
[6.6,"Fingerprint Readers","No",1,null,"Rate only"]
[]
[6.7,"RAC-ClockWatch Integrated handheld Controller","No",1,null,"Rate only"]
[]
[null,"Sub Total carried to summary (Excl. Vat)",{"$nulls":3},{"$f":"SUM(F135:F153)","v":0}]
[]
[null,"BILL NO 7"]
[]
[{"v":7,"d":"7 "},"Eric Building CCTV System "]
[]
[null,"Supply, install, connect, test, and commission complete CCTV system, including all cabling, terminations, interfaces with existing systems, and handover documentation."]
[]
[7.1,"Nuuo Network Video Recorder","No",1,null,"Rate only"]
[]
[7.2,"Nuuo Storage 4TB","No",1,null,"Rate only"]
[]
[7.3,"AXIS camera","No",1,null,"Rate only"]
[]
[7.4,"AXIS PTZ ","No",1,null,"Rate only"]
[]
[7.5,"Core Switch 24 Port Fibre","No",1,null,"Rate only"]
[]
[7.6,"Switches PoE 24 Port","No",1,null,"Rate only"]
[]
[7.7,"Switches PoE 8 Port","No",1,null,"Rate only"]
[]
[7.8,"43 Inch Display Screen","No",1,null,"Rate only"]
[]
[7.9,"55 Inch Display Screen","No",1,null,"Rate only"]
[]
[{"v":7.1,"d":"7.10"},"Video Display Controller","No",1,null,"Rate only"]
[]
[7.11,"UPS system","No",1,null,"Rate only"]
[]
[null,"Sub Total carried to summary (Excl. Vat)",{"$nulls":3},{"$f":"SUM(F161:F183)","v":0}]
[]
[null,"BILL NO 8"]
[]
[{"v":8,"d":"8 "},"Perimeter Electric Fence 2.4 km  "]
[]
[null,"Supply, install, test, and commission approximately 2.4 km of perimeter electric fencing, including energisers, fencing wires, insulators, poles, warning signage, earthing, monitoring interfaces, power supply, compliance with relevant standards, testing, commissioning, and handover documentation."]
[]
[8.1,"i7 Nemtek System Controller","No",1,null,"Rate only"]
[]
[8.2,"Nemtek Software ","No",1,null,"Rate only"]
[]
[8.3,"Nemtek Energiser ","No",1,null,"Rate only"]
[]
[8.4,"Nemtek Energiser LCD controller","No",1,null,"Rate only"]
[]
[8.5,"Nemtek fence management software","No",1,null,"Rate only"]
[]
[8.6,"Wireless Networks","No",1,null,"Rate only"]
[]
[8.7,"20line installed electric fence(meter)","M",1,null,"Rate only"]
[]
[8.8,"200Ah Battery","No",1,null,"Rate only"]
[]
[8.9,"Gate Motor","No",1,null,"Rate only"]
[]
[null,"Sub Total carried to summary (Excl. Vat)",{"$nulls":3},{"$f":"SUM(F186:F209)","v":0}]
[]
[null,"BILL NO 9"]
[]
[null,"Electric Fence "]
[]
[{"v":9,"d":"9 "},"EBI Access Control ERIC Building "]
[]
[null,"Supply, install, connect, test, and commission EBI access control system including controllers, readers, control panels, power supplies, structured cabling, software configuration, integration with existing security systems, testing, commissioning, and handover documentation."]
[]
[9.1,"Tema Power Supply","No",1,null,"Rate only"]
[]
[9.2,"Tema Server","No",1,null,"Rate only"]
[]
[9.3,"A08 Controller ","No",1,null,"Rate only"]
[]
[9.4,"A08 Controller PSU, Battery & Enclosure","No",1,null,"Rate only"]
[]
[9.5,"Fingerprint Readers","No",1,null,"Rate only"]
[]
[9.6,"Card Readers","No",1,null,"Rate only"]
[]
[null,"Sub Total carried to summary (Excl. Vat)",{"$nulls":3},{"$f":"SUM(F213:F231)","v":0}]
[]
[null,"BILL NO 10"]
[]
[10,"ERIC Building RAC-ClockWatch Access Control "]
[]
[null,"Supply, install, connect, test, and commission the ClockWatch access control system  including access control hardware, readers, controllers, cabling, software setup, integration with existing systems, testing, commissioning, and handover documentation."]
[]
[10.1,"RAC-ClockWatch Access Control Server","No",1,null,"Rate only"]
[]
[10.2,"RAC- ClockWatch workstation","No",1,null,"Rate only"]
[]
[10.3,"RAC- ClockWatch Controller ","No",1,null,"Rate only"]
[]
[10.4,"RAC Controller PSU, Battery & Enclosure","No",1,null,"Rate only"]
[]
[10.5,"Face Recognition","No",1,null,"Rate only"]
[]
[10.6,"Waist Height Turnstile","No",1,null,"Rate only"]
[]
[10.7,"Door Siren","No",1,null,"Rate only"]
[]
[10.8,"Emergency Break Glass","No",1,null,"Rate only"]
[]
[10.9,"Access Cards & Accessories","No",1,null,"Rate only"]
[]
[{"v":10.1,"d":"10.10"},"Access Card Printer & Accessories","No",1,null,"Rate only"]
[]
[10.11,"Video Intercoms","No",1,null,"Rate only"]
[]
[null,"Sub Total carried to summary (Excl. Vat)",{"$nulls":3},{"$f":"SUM(F236:F261)","v":0}]
[]
[null,"BILL NO 11"]
[]
[null,"EAL CCTV System"]
[]
[null,"Supply, install, connect, test, and commission complete CCTV system, including all cabling, terminations, interfaces with existing systems, and handover documentation."]
[]
[11.1,"Nuuo Network Video Recorder","No",1,null,"Rate only"]
[]
[11.2,"Nuuo Storage ","No",1,null,"Rate only"]
[]
[11.3,"AXIS camera","No",1,null,"Rate only"]
[]
[11.4,"AXIS PTZ ","No",1,null,"Rate only"]
[]
[11.5,"Bosch Camera","No",1,null,"Rate only"]
[]
[11.6,"Switches PoE 24 Port","No",1,null,"Rate only"]
[]
[11.7,"Switches PoE 8 Port","No",1,null,"Rate only"]
[]
[11.8,"43 Inch Display Screen","No",1,null,"Rate only"]
[]
[11.9,"Video Display Controller","No",1,null,"Rate only"]
[]
[null,"Sub Total carried to summary (Excl. Vat)",{"$nulls":3},{"$f":"SUM(F266:F287)","v":0}]
[]
[null,"BILL NO 12"]
[]
[null,"EAL CCTV System "]
[]
[12,"ERIC Building RAC-ClockWatch Access Control "]
[]
[null,"Supply, install, connect, test, and commission the ClockWatch access control system  including access control hardware, readers, controllers, cabling, software setup, integration with existing systems, testing, commissioning, and handover documentation."]
[]
[12.1,"RAC-ClockWatch Access Control Server","No",1,null,"Rate only"]
[]
[12.2,"RAC- ClockWatch Workstation","No",1,null,"Rate only"]
[]
[12.3,"RAC- ClockWatch Controller ","No",1,null,"Rate only"]
[]
[12.4,"RAC Controller PSU, Battery & Enclosure","No",1,null,"Rate only"]
[]
[12.5,"Fingerprint Readers","No",1,null,"Rate only"]
[]
[12.6,"Card Readers","No",1,null,"Rate only"]
[]
[null,"Sub Total carried to summary (Excl. Vat)",{"$nulls":3},{"$f":"SUM(F294:F309)","v":0}]
[]
[null,"BILL NO 13"]
[]
[null,"RAC-ClockWatch Access Control "]
[]
[13,"RAC-ClockWatch Meal Management System "]
[]
[null,"Supply, install, connect, test, and commission the ClockWatch access control system  including access control hardware, readers, controllers, cabling, software setup, integration with existing systems, testing, commissioning, and handover documentation."]
[]
[13.1,"RAC-ClockWatch Meal Management Server","No",1,null,"Rate only"]
[]
[13.2,"RAC- ClockWatch workstation","No",1,null,"Rate only"]
[]
[13.3,"RAC- ClockWatch Meal Management Kiosk","No",1,null,"Rate only"]
[]
[13.4,"RAC Controller PSU, Battery & Enclosure","No",1,null,"Rate only"]
[]
[13.5,"Waist Height Turnstile","No",1,null,"Rate only"]
[]
[null,"Sub Total carried to summary (Excl. Vat)",{"$nulls":3},{"$f":"SUM(F316:F329)","v":0}]
[null,"BILL NO 14"]
[]
[null,"Employee Starter Kit/Pack: "]
[]
[14.1,"Single sided Card printer ribbon (Cartridge)","No",1,null,"Rate only"]
[]
[14.2,"PVC White printable adhesive cards per pack of 100","No",1,null,"Rate only"]
[]
[14.3,"Eskom Laptop/ equipment permit","No",1,null,"Rate only"]
[]
[14.4,"PVC card holders","No",1,null,"Rate only"]
[]
[14.5,"Eskom blue Lanyards","No",1,null,"Rate only"]
[]
[null,"Sub Total carried to summary (Excl. Vat)",{"$nulls":3},{"$f":"SUM(F333:F344)","v":0}]
[]
[null,"BILL NO 15"]
[]
[null,"Labour Rates"]
[]
[15.1,"Site Technician","No",1,null,"Rate only"]
[]
[15.2,"Assistant Site Technician","No",1,null,"Rate only"]
[]
[15.3,"System/ IT Specialist","No",1,null,"Rate only"]
[]
[15.4,"Engineer ","No",1,null,"Rate only"]
[]
[15.5,"PPE","No",1,null,"Rate only"]
[]
[15.6,"Transport","Km",1,null,"Rate only"]
[]
[15.7,"Call Out (After hours)","Hr",1,null,"Rate only"]
[]
[15.8,"Monthly Maintenance Flat Rate","Monthly",1,null,"Rate only"]
[]
[null,"Sub Total carried to summary (Excl. Vat)",{"$nulls":3},{"$f":"SUM(F349:F366)","v":0}]
[null,"BILL NO 16"]
[]
[null,"Budgetary Allowance"]
[]
[16.1,"A flat rate budgetary allowance shall be determined and set by Eskom, applicable uniformly to all suppliers. This allowance will serve as the baseline for ad hoc requests and new task orders, ensuring consistency and transparency across the project. Suppliers to  estimate the budgetary allowance.","Sum",1,null,{"$f":"D372*E372","v":0}]
[]
[null,"Sub Total carried to summary (Excl. Vat)",{"$nulls":3},{"$f":"SUM(F368:F373)","v":0}]